bitfinex-derivatives/quotes_SOLF0:USTF0_20250409
["timestamp","ask_amount","ask_price","bid_price","bid_amount"]
[1744208732783,9.3931,106.55,106.51,12.8047693]
[1744208732989,84.33763456,106.58,106.53,9.3938]
[1744208733188,59.96,106.58,106.5,10.44464272]
[1744208733385,84.33763456,106.58,106.51,8.86603243]
[1744208733585,24.37763456,106.56,106.5,18.2078]
[1744208733784,9.3949,106.53,106.5,18.2078]
[1744208733988,9.3949,106.53,106.5,18.27933653]
[1744208734179,9.46166074,106.53,106.5,18.27933653]
[1744208734583,0.06676074,106.53,106.5,8.88283653]
[1744208734784,0.06676074,106.53,106.51,8.87412245]
[1744208734994,0.06676074,106.53,106.5,8.88283653]
[1744208735187,0.06676074,106.53,106.51,18.26896982]
[1744208735388,0.06676074,106.53,106.51,9.3956]
[1744208735696,0.06676074,106.53,106.52,9.3952]
[1744208735885,0.06676074,106.53,106.52,8.87204635]
[1744208736494,0.06676074,106.53,106.51,8.87812935]
[1744208736791,0.06676074,106.53,106.52,18.27332935]
[1744208737098,24.37763456,106.6,106.5,93.14047109]
[1744208737398,9.3909,106.57,106.5,452.06893456]
[1744208737790,9.3909,106.57,106.54,9.3928]
[1744208738194,0.0624057,106.57,106.54,0.06167275]
[1744208739082,9.4537057,106.57,106.54,0.06167275]
[1744208739286,0.0624057,106.57,106.55,8.89944602]
[1744208739489,4.54,106.62,106.54,0.06167275]
[1744208739695,8.87,106.65,106.57,24.37763456]
[1744208739899,8.87,106.65,106.58,12.86775649]
[1744208740083,8.87,106.65,106.59,12.86775649]
[1744208740389,33.24763456,106.65,106.58,4.4034]
[1744208740590,8.87,106.65,106.59,12.84328678]
[1744208740904,0.07087409,106.63,106.6,0.05997501]
[1744208741598,0.07087409,106.63,106.6,9.44787501]
[1744208741896,0.07087409,106.63,106.6,0.05997501]
[1744208742098,9.3872,106.61,106.6,0.05997501]
[1744208742296,48.75526912,106.61,106.49,383.37763456]
[1744208742501,24.37763456,106.57,106.52,8.89651716]
[1744208742690,84.25763456,106.57,106.5,9.5085]
[1744208742896,24.37763456,106.55,106.51,8.91422356]
[1744208743092,24.37763456,106.55,106.51,9.3957]
[1744208743411,0.06045551,106.54,106.52,0.06806998]
[1744208743594,39.08494004,106.73,106.52,359.06806998]
[1744208743900,24.37763456,106.74,106.62,24.37763456]
[1744208744094,9.3807,106.69,106.63,13.55972884]
[1744208744296,24.37763456,106.71,106.63,14.0375]
[1744208744499,59.9,106.7,106.61,59.9]
[1744208744699,9.3814,106.68,106.62,8.88279526]
[1744208745001,0.06900982,106.67,106.64,0.06075543]
[1744208745394,0.06900982,106.67,106.62,24.37763456]
[1744208745600,0.06900982,106.67,106.64,0.06765309]
[1744208745797,0.06900982,106.67,106.65,8.87030145]
[1744208746008,4.6244,106.72,106.66,33.24686361]
[1744208746209,4.8465,106.73,106.67,8.86449566]
[1744208746399,4.8465,106.73,106.7,9.3789]
[1744208746601,4.8465,106.73,106.66,24.37763456]
[1744208746905,4.8465,106.73,106.7,9.3788]
[1744208747207,0.07079457,106.71,106.7,9.3788]
[1744208747503,0.07079457,106.71,106.7,9.44781061]
[1744208748107,0.07079457,106.71,106.7,0.06901061]
[1744208748603,0.07079457,106.71,106.65,9.4121]
[1744208748805,0.07079457,106.71,106.67,9.3819]
[1744208749201,0.07079457,106.71,106.65,9.4121]
[1744208749404,39.555927,106.71,106.62,4.7972]
[1744208749703,59.88,106.72,106.63,12.78984238]
[1744208749897,0.06952116,106.68,106.66,9.3828]
[1744208750097,0.06952116,106.68,106.62,423.6772]
[1744208750305,0.06952116,106.68,106.66,0.07015431]
[1744208750498,0.06952116,106.68,106.66,9.45255431]
[1744208750698,0.06952116,106.68,106.66,0.07015431]
[1744208750900,59.86,106.67,106.62,359.0]
[1744208751099,4.3951,106.66,106.56,73.6324]
[1744208751407,39.48513243,106.64,106.57,8.85259326]
[1744208751596,39.48513243,106.64,106.58,8.85259326]
[1744208751792,59.86,106.63,106.56,13.7724]
[1744208752096,59.86,106.63,106.55,359.0]
[1744208752301,0.06118271,106.61,106.58,0.07008557]
[1744208752700,9.44908271,106.61,106.58,0.0677997]
[1744208752908,0.06118271,106.61,106.58,0.0677997]
[1744208753201,9.44888271,106.61,106.58,9.4576997]
[1744208753599,0.06118271,106.61,106.58,0.0677997]
[1744208755407,0.06118271,106.61,106.6,9.3881]
[1744208756103,64.4684,106.68,106.6,8.86474042]
[1744208756309,68.9709,106.68,106.59,44.28083243]
[1744208756512,68.9709,106.68,106.6,8.86478265]
[1744208756702,68.9709,106.68,106.59,44.28083243]
[1744208756906,68.9709,106.68,106.6,8.86385692]
[1744208757095,68.9709,106.68,106.58,9.3895]
[1744208757096,39.48513243,106.66,106.58,9.3895]
[1744208757312,0.06756318,106.65,106.63,0.06357354]
[1744208757514,39.48513243,106.66,106.63,0.06357354]
[1744208757812,9.3866,106.62,106.55,39.48513243]
[1744208758000,9.3866,106.62,106.56,12.82897525]
[1744208758199,0.06125426,106.6,106.58,9.3894]
[1744208758407,39.48513243,106.66,106.55,398.48513243]
[1744208758607,39.48513243,106.66,106.6,50.0]
[1744208758809,9.3872,106.61,106.6,50.0]
[1744208758997,0.06164068,106.62,106.6,50.0]
[1744208759205,9.44844068,106.62,106.6,50.0]
[1744208759515,0.06164068,106.62,106.6,50.0]
[1744208760007,9.3872,106.61,106.6,50.0]
[1744208760407,9.3872,106.61,106.6,35.4323]
[1744208760613,9.3881,106.6,106.59,1.291e-05]
[1744208760815,108.73323243,106.6,106.59,1.291e-05]
[1744208761013,118.11323243,106.6,106.59,1.291e-05]
[1744208761712,108.73323243,106.6,106.59,1.291e-05]
[1744208761913,118.11323243,106.6,106.59,1.291e-05]
[1744208762408,108.72513243,106.6,106.49,41.11851348]
[1744208762607,39.48513243,106.57,106.48,363.7297]
[1744208762808,99.34513243,106.6,106.53,9.3938]
[1744208763009,99.34513243,106.6,106.49,39.48513243]
[1744208763212,99.34513243,106.6,106.5,12.84521845]
[1744208763508,99.34513243,106.6,106.51,18.27853904]
[1744208763714,0.06236093,106.56,106.54,0.06970777]
[1744208764212,9.3925,106.55,106.54,0.06970777]
[1744208764605,0.06236093,106.56,106.54,0.06970777]
[1744208765010,0.06236093,106.56,106.54,9.46270777]
[1744208765403,0.06236093,106.56,106.54,0.06970777]
[1744208765604,0.06236093,106.56,106.55,9.3925]
[1744208766010,59.86,106.6,106.55,4.5126]
[1744208766214,59.86,106.6,106.57,9.3907]
[1744208766513,9.3898,106.59,106.55,4.5126]
[1744208766724,9.3898,106.59,106.56,9.3913]
[1744208767013,59.86,106.6,106.56,9.3913]
[1744208767226,0.07002587,106.59,106.56,0.06563803]
[1744208769017,0.07002587,106.59,106.58,9.3899]
[1744208769512,43.95813243,106.66,106.58,48.34911303]
[1744208769513,64.273,106.66,106.58,48.34911303]
[1744208769718,64.273,106.66,106.58,39.48513243]
[1744208769917,64.273,106.66,106.56,398.48513243]
[1744208770120,9.3895,106.59,106.57,12.82071851]
[1744208770417,39.48513243,106.64,106.56,359.0]
[1744208770604,0.06358132,106.59,106.57,0.06068711]
[1744208770809,64.273,106.66,106.57,8.87164557]
[1744208771015,103.75813243,106.66,106.56,398.48513243]
[1744208771214,103.75813243,106.66,106.57,8.87249614]
[1744208771413,99.28513243,106.66,106.56,359.0]
[1744208771605,59.8,106.66,106.61,9.3871]
[1744208771813,0.06435116,106.65,106.57,39.48513243]
[1744208772117,9.3843,106.65,106.62,9.44670768]
[1744208772306,59.8,106.66,106.62,0.06050768]
[1744208772510,0.06023051,106.65,106.62,0.06028472]
[1744208772707,9.3855,106.63,106.62,0.06028472]
[1744208773719,9.3851,106.64,106.62,0.06028472]
[1744208773909,0.06023051,106.65,106.62,0.06028472]
[1744208775714,9.44443051,106.65,106.62,0.06028472]
[1744208776106,9.44443051,106.65,106.62,9.44618472]
[1744208776718,9.3848,106.64,106.62,0.06028472]
[1744208776916,57.0,106.64,106.62,0.06028472]
[1744208777417,57.0,106.64,106.62,9.44618472]
[1744208777619,57.0,106.64,106.62,0.06028472]
[1744208777919,9.3855,106.63,106.62,0.06028472]
[1744208778119,116.78,106.64,106.62,0.06028472]
[1744208778315,57.0,106.64,106.62,0.06028472]
[1744208778508,57.0,106.64,106.63,9.3855]
[1744208778706,500.0002,106.72,106.62,359.06028472]
[1744208778707,4.5002,106.72,106.62,359.06028472]
[1744208778912,4.5002,106.72,106.63,121.06333765]
[1744208779219,4.5002,106.72,106.64,8.87224624]
[1744208779420,4.5002,106.72,106.63,68.7486]
[1744208779621,4.5002,106.72,106.66,9.3824]
[1744208780022,9.3806,106.69,106.68,0.06876886]
[1744208780323,4.5002,106.72,106.68,0.06876886]
[1744208780823,64.4178,106.73,106.68,9.44976886]
[1744208781216,9.3796,106.7,106.68,0.06876886]
[1744208782622,64.4178,106.73,106.68,0.06876886]
[1744208783626,9.3797,106.7,106.68,0.06876886]
[1744208783822,4.5198,106.74,106.68,0.06876886]
[1744208784730,9.3801,106.7,106.68,0.06876886]
[1744208784931,4.5198,106.74,106.68,0.06876886]
[1744208785229,9.3789,106.71,106.68,0.06876886]
[1744208785528,4.5198,106.74,106.68,0.06876886]
[1744208785729,4.4085,106.75,106.68,0.06876886]
[1744208785926,64.5851,106.76,106.68,24.31535507]
[1744208786126,64.5851,106.76,106.7,0.06732069]
[1744208786325,64.5851,106.76,106.72,9.3772]
[1744208786532,59.76,106.79,106.7,24.31535507]
[1744208786824,59.76,106.82,106.74,24.31535507]
[1744208787036,59.76,106.82,106.75,14.147]
[1744208787218,4.8383,106.83,106.76,24.31535507]
[1744208787425,4.3672,106.84,106.77,0.06957798]
[1744208787823,9.3719,106.79,106.76,368.3736]
[1744208788028,4.3672,106.84,106.79,0.06472535]
[1744208788227,4.3672,106.84,106.76,359.0]
[1744208788422,9.3693,106.82,106.8,0.06652996]
[1744208788730,59.74,106.81,106.8,0.06652996]
[1744208788932,69.1097,106.81,106.8,0.06652996]
[1744208789227,84.05535507,106.81,106.72,4.4554]
[1744208789427,9.3763,106.74,106.72,4.4554]
[1744208789622,9.3763,106.74,106.71,359.0]
[1744208790022,9.3768,106.73,106.71,359.0]
[1744208790318,59.74,106.77,106.71,359.0]
[1744208790520,0.06285375,106.73,106.71,359.06811035]
[1744208790719,603.33132458,106.8,106.71,359.06811035]
[1744208790922,59.74,106.8,106.72,39.47202458]
[1744208791429,39.47202458,106.82,106.72,39.47202458]
[1744208791635,9.3722,106.79,106.75,9.3742]
[1744208791831,9.3722,106.79,106.76,0.07221267]
[1744208792220,9.3728,106.78,106.76,0.07221267]
[1744208792421,103.78122458,106.83,106.76,0.07221267]
[1744208792625,103.78122458,106.83,106.74,4.4469]
[1744208792935,9.3712,106.8,106.78,0.06909833]
[1744208793522,64.3092,106.83,106.78,0.06909833]
[1744208793932,9.3684,106.83,106.78,0.06909833]
[1744208794531,9.3684,106.83,106.8,9.3701]
[1744208794732,9.3697,106.81,106.78,0.06909833]
[1744208794932,39.47202458,106.85,106.78,9.3719]
[1744208795132,59.64,106.83,106.78,0.06409173]
[1744208795334,9.3708,106.8,106.77,368.2919]
[1744208795532,59.64,106.83,106.79,0.064505]
[1744208796641,9.3698,106.81,106.79,0.064505]
[1744208796829,59.64,106.83,106.79,0.064505]
[1744208797640,9.3696,106.82,106.79,9.435505]
[1744208797943,59.64,106.83,106.79,0.064505]
[1744208798242,9.3698,106.81,106.79,0.064505]
[1744208798739,69.0083,106.83,106.8,9.3699]
[1744208798929,9.3683,106.83,106.8,9.3699]
[1744208799129,4.672,106.84,106.79,0.064505]
[1744208799330,59.62,106.86,106.81,9.3696]
[1744208799538,59.62,106.86,106.8,4.7339]
[1744208799748,59.62,106.86,106.77,368.2919]
[1744208799749,39.47202458,106.85,106.82,0.06395302]
[1744208800041,9.3679,106.83,106.82,0.06395302]
[1744208802036,9.3675,106.84,106.82,0.06395302]
[1744208802826,9.3679,106.83,106.82,0.06395302]
[1744208804348,59.62,106.86,106.77,359.0]
[1744208804536,39.47202458,106.81,106.73,13.5302]
[1744208804738,39.47202458,106.77,106.69,102.1691135]
[1744208805044,39.47202458,106.79,106.73,9.3762]
[1744208805247,39.47202458,106.79,106.71,4.5205]
[1744208805540,39.5365249,106.77,106.71,4.5205]
[1744208805738,59.6,106.76,106.74,0.06999581]
[1744208806046,59.6,106.76,106.7,102.1691135]
[1744208806252,39.47202458,106.75,106.7,102.1691135]
[1744208806437,4.8301,106.75,106.7,102.1691135]
[1744208806635,39.47202458,106.73,106.7,102.1691135]
[1744208806835,4.7606,106.74,106.7,102.1691135]
[1744208807340,9.43951945,106.73,106.71,0.0708767]
[1744208807548,0.06231945,106.73,106.71,0.0708767]
[1744208808647,9.3776,106.72,106.71,0.0708767]
[1744208809052,0.06231945,106.73,106.71,0.0708767]
[1744208809242,9.3776,106.72,106.71,0.0708767]
[1744208809440,0.06231945,106.73,106.71,0.0708767]
[1744208809850,9.3776,106.72,106.71,0.0708767]
[1744208810041,0.06231945,106.73,106.71,0.0708767]
[1744208810553,9.3776,106.72,106.71,0.0708767]
[1744208811351,9.3776,106.72,106.71,7.67e-05]
[1744208814744,33.68760104,106.72,106.71,7.67e-05]
[1744208814945,24.31000104,106.72,106.63,360.63131372]
[1744208815146,24.31000104,106.68,106.63,359.0]
[1744208815445,24.31000104,106.66,106.62,27.61847419]
[1744208815649,83.95000104,106.66,106.62,27.61847419]
[1744208815851,24.31000104,106.64,106.62,27.61847419]
[1744208816041,24.31000104,106.64,106.61,102.1691135]
[1744208816243,24.31000104,106.62,106.61,87.5979135]
[1744208816452,9.3881,106.6,106.59,574.7012635]
[1744208816750,33.69810104,106.6,106.59,313.19063561]
[1744208817056,58.00810208,106.6,106.59,76.72424899]
[1744208817251,67.38810208,106.6,106.59,9.82727567]
[1744208817458,562.34810208,106.6,106.59,9.82727567]
[1744208817655,552.96000208,106.6,106.57,445.77093715]
[1744208817857,24.31000104,106.58,106.57,445.77093715]
[1744208818152,93.33990104,106.58,106.57,427.24773715]
[1744208818345,102.71990104,106.58,106.57,427.24773715]
[1744208818544,102.71990104,106.58,106.57,394.49743715]
[1744208818852,130.86990104,106.58,106.57,327.56243715]
[1744208819047,93.33000104,106.58,106.53,97.11624553]
[1744208819353,496.42408772,106.58,106.48,39.65488586]
[1744208819553,496.42408772,106.58,106.48,398.65488586]
[1744208819759,496.42408772,106.58,106.5,9.3964]
[1744208819960,9.3912,106.57,106.48,398.65488586]
[1744208820161,0.06449283,106.55,106.53,0.06503526]
[1744208820365,39.65488586,106.54,106.43,39.65488586]
[1744208820548,39.65488586,106.54,106.42,39.65488586]
[1744208820549,9.3982,106.49,106.42,39.65488586]
[1744208820748,99.33488586,106.49,106.41,13.642]
[1744208821054,99.33488586,106.49,106.37,99.33488586]
[1744208821252,99.33488586,106.49,106.38,12.83048151]
[1744208821459,39.65488586,106.47,106.37,458.33488586]
[1744208821766,0.07199769,106.45,106.42,0.06109352]
[1744208823056,114.87877642,106.44,106.37,426.90235423]
[1744208823661,477.84704042,106.44,106.37,426.90235423]
[1744208823854,477.84704042,106.44,106.37,359.0]
[1744208823855,517.50192628,106.44,106.37,359.0]
[1744208824063,517.50192628,106.44,106.36,13.642]
[1744208824267,477.84704042,106.44,106.33,39.65488586]
[1744208824561,39.65488586,106.42,106.39,0.06365705]
[1744208824766,0.06358911,106.4,106.39,0.06365705]
[1744208825154,9.46938911,106.4,106.39,0.06365705]
[1744208825356,58.52427497,106.4,106.39,0.06365705]
[1744208825552,39.71847497,106.4,106.39,0.06365705]
[1744208825748,0.06358911,106.4,106.32,49.02878586]
[1744208826163,59.64,106.41,106.36,9.409]
[1744208826561,9.4058,106.4,106.36,9.409]
[1744208827068,0.0722521,106.39,106.37,0.0677735]
[1744208827462,0.0722521,106.39,106.34,39.61840126]
[1744208827668,0.0722521,106.39,106.38,9.4075]
[1744208827965,37.45459149,106.4,106.36,39.65488586]
[1744208828266,37.45459149,106.4,106.37,4.4602]
[1744208828467,50.30490894,106.43,106.38,39.65488586]
[1744208828656,0.06999137,106.4,106.38,39.65488586]
[1744208828850,50.30490894,106.43,106.38,39.65488586]
[1744208829051,50.30490894,106.43,106.42,9.404]
[1744208829250,47.54446029,106.44,106.4,39.65488586]
[1744208829675,47.54446029,106.44,106.43,9.4031]
[1744208829886,25.68256029,106.44,106.43,9.4031]
[1744208830170,36.40544624,106.45,106.44,9.4022]
[1744208830564,36.40544624,106.45,106.44,49.05708586]
[1744208830756,36.40544624,106.45,106.44,9.4022]
[1744208830957,3.61244624,106.45,106.44,58.45708586]
[1744208831158,2.55152723,106.46,106.45,9.4014]
[1744208831363,2.55152723,106.46,106.44,108.73488586]
[1744208831364,37.72868171,106.47,106.44,99.33488586]
[1744208831554,59.68,106.54,106.46,9.4]
[1744208831759,59.68,106.54,106.44,99.33488586]
[1744208831972,53.66688586,106.53,106.44,99.33488586]
[1744208832168,0.0592356,106.5,106.47,0.06964747]
[1744208832871,9.3984,106.49,106.47,0.06964747]
[1744208833074,59.68,106.48,106.42,293.38942168]
[1744208833262,9.4014,106.45,106.41,9.4043]
[1744208833465,44.50788586,106.47,106.38,392.72430754]
[1744208833672,44.50788586,106.47,106.38,353.06942168]
[1744208833869,9.4042,106.42,106.38,302.79642168]
[1744208834071,39.65488586,106.45,106.36,41.28945608]
[1744208834275,0.05972986,106.41,106.39,0.06333495]
[1744208835475,0.05972986,106.41,106.4,9.4058]
[1744208836474,0.05972986,106.41,106.39,9.46953495]
[1744208836667,0.05972986,106.41,106.39,0.06333495]
[1744208837071,0.05972986,106.41,106.4,9.4058]
[1744208837774,0.05972986,106.41,106.39,9.46943495]
[1744208837965,0.05972986,106.41,106.39,0.06333495]
[1744208838670,59.68,106.4,106.32,293.38942168]
[1744208838871,9.1928,106.39,106.32,9.4124]
[1744208839069,9.4103,106.35,106.32,9.4124]
[1744208839273,39.65488586,106.37,106.29,59.68]
[1744208839771,0.06433816,106.34,106.32,0.0678517]
[1744208840970,0.06433816,106.34,106.33,9.412]
[1744208841165,0.06433816,106.34,106.32,0.0678517]
[1744208841475,0.06433816,106.34,106.32,9.4802517]
[1744208841869,0.06433816,106.34,106.32,0.0678517]
[1744208842971,0.06433816,106.34,106.33,9.412]
[1744208843873,3.816e-05,106.34,106.33,9.412]
[1744208844681,3.816e-05,106.34,106.33,49.06688586]
[1744208845176,3.816e-05,106.34,106.33,9.412]
[1744208845877,3.816e-05,106.34,106.33,49.06688586]
[1744208847171,3.816e-05,106.34,106.33,9.412]
[1744208848268,3.816e-05,106.34,106.33,49.06688586]
[1744208850481,4.4935,106.41,106.33,39.65488586]
[1744208850680,4.4935,106.41,106.31,832.46260754]
[1744208850878,9.4062,106.4,106.37,9.408]
[1744208851082,4.4935,106.41,106.34,39.65488586]
[1744208851284,9.4077,106.38,106.34,39.65488586]
[1744208851480,4.4935,106.41,106.32,39.65488586]
[1744208851691,0.07013917,106.37,106.36,39.65488586]
[1744208851985,4.4935,106.41,106.34,39.65488586]
[1744208852185,0.06837132,106.38,106.35,0.06593422]
[1744208852577,0.06837132,106.38,106.35,9.47573422]
[1744208852888,9.47637132,106.38,106.35,9.47573422]
[1744208853283,0.06837132,106.38,106.35,0.06593422]
[1744208854798,0.06837132,106.38,106.35,9.47573422]
[1744208855192,99.25488586,106.37,106.28,64.09463799]
[1744208855493,9.312,106.36,106.27,296.04502168]
[1744208855907,9.312,106.36,106.31,9.4137]
[1744208856103,9.312,106.36,106.27,296.04502168]
[1744208856395,9.312,106.36,106.32,9.4127]
[1744208856598,0.07010249,106.33,106.3,0.06646512]
[1744208856796,0.07010249,106.33,106.27,296.04502168]
[1744208857103,0.07010249,106.33,106.3,0.06446858]
[1744208858397,0.07010249,106.33,106.32,9.4129]
[1744208860700,0.07010249,106.33,106.32,18.31607356]
[1744208860899,0.07010249,106.33,106.3,0.06446858]
[1744208861207,0.07010249,106.33,106.31,8.92442699]
[1744208861390,0.07010249,106.33,106.3,9.47866858]
[1744208861586,9.4129,106.32,106.31,8.92342795]
[1744208863407,0.07010249,106.33,106.31,8.92342795]
[1744208863598,0.07010249,106.33,106.32,8.92342795]
[1744208864099,49.13698835,106.33,106.32,8.92342795]
[1744208864298,99.34498835,106.33,106.32,8.95778345]
[1744208864497,108.75698835,106.33,106.32,8.345e-05]
[1744208864690,108.74498835,106.33,106.3,0.06446858]
[1744208864893,4.4723,106.32,106.3,0.06446858]
[1744208865197,9.4147,106.3,106.24,293.38942168]
[1744208865397,9.4147,106.3,106.25,3.9959189]
[1744208865697,9.4147,106.3,106.27,9.4168]
[1744208865904,9.4147,106.3,106.24,293.38942168]
[1744208866105,9.4147,106.3,106.25,3.99589007]
[1744208866304,9.4147,106.3,106.28,9.4163]
[1744208866602,0.07066553,106.29,106.26,0.06166967]
[1744208866793,0.07066553,106.29,106.27,13.41160751]
[1744208866990,0.07066553,106.29,106.26,0.06166967]
[1744208867700,9.4168,106.28,106.26,0.06166967]
[1744208868004,39.65488586,106.27,106.19,293.38942168]
[1744208868203,39.65488586,106.25,106.2,3.99458648]
[1744208868398,39.65488586,106.25,106.2,9.4228]
[1744208868599,44.37468586,106.25,106.16,298.90692168]
[1744208868902,4.7198,106.25,106.17,103.2869949]
[1744208869103,4.7198,106.25,106.19,0.06769187]
[1744208869308,0.07132707,106.22,106.19,0.06769187]
[1744208869502,0.07132707,106.22,106.21,9.4226]
[1744208872505,59.66,106.29,106.21,13.39551235]
[1744208872707,59.66,106.29,106.2,39.65488586]
[1744208872903,39.65488586,106.28,106.19,293.38942168]
[1744208873108,14.0169,106.3,106.22,39.65488586]
[1744208873303,23.432,106.3,106.22,39.65488586]
[1744208873496,14.0169,106.3,106.26,9.4176]
[1744208873700,0.06806996,106.27,106.26,9.4176]
[1744208875113,59.66,106.31,106.25,0.0710056]
[1744208875313,9.4126,106.33,106.26,3.97575204]
[1744208875514,9.4126,106.33,106.25,0.0710056]
[1744208875706,9.4126,106.33,106.3,9.4142]
[1744208876013,9.4129,106.32,106.3,9.4142]
[1744208876218,9.4129,106.32,106.3,9.4776648]
[1744208876701,9.48343959,106.33,106.3,9.4776648]
[1744208877004,9.48343959,106.33,106.3,0.0634648]
[1744208877005,0.07103959,106.33,106.3,0.0634648]
[1744208877399,39.72592545,106.33,106.23,65.1839]
[1744208877599,39.65488586,106.33,106.24,3.98830083]
[1744208877807,9.4141,106.31,106.25,3.98830083]
[1744208878008,39.65488586,106.33,106.26,3.98725321]
[1744208878209,9.4123,106.33,106.24,39.65488586]
[1744208878409,73.8691,106.34,106.31,9.4137]
[1744208878609,73.8691,106.34,106.27,0.05957842]
[1744208878806,83.35104203,106.34,106.28,3.98853101]
[1744208879011,99.31488586,106.37,106.29,4.04760311]
[1744208879223,0.06428984,106.32,106.29,0.05992746]
[1744208879518,8.984e-05,106.32,106.31,9.4137]
[1744208879817,8.984e-05,106.32,106.31,13.39914646]
[1744208880018,8.984e-05,106.32,106.31,9.4137]
[1744208880918,8.984e-05,106.32,106.31,13.39738306]
[1744208881212,8.984e-05,106.32,106.31,13.39770492]
[1744208881416,8.984e-05,106.32,106.31,13.39980717]
[1744208881622,8.984e-05,106.32,106.31,73.04080714]
[1744208883014,8.984e-05,106.32,106.31,13.40773291]
[1744208883224,8.984e-05,106.32,106.31,9.4137]
[1744208884020,8.984e-05,106.32,106.3,9.48640324]
[1744208884722,8.984e-05,106.32,106.31,9.4137]
[1744208885610,8.984e-05,106.32,106.3,0.07210324]
[1744208886119,9.4137,106.31,106.3,0.07210324]
[1744208886318,83.96989511,106.32,106.23,795.91802168]
[1744208886619,83.96980527,106.32,106.24,4.00402075]
[1744208886925,9.4168,106.28,106.23,293.38942168]
[1744208887126,83.96980527,106.28,106.19,358.45802168]
[1744208887325,9.63245829,106.27,106.24,0.07042693]
[1744208887521,9.4182,106.26,106.24,0.07042693]
[1744208888025,9.4191,106.25,106.24,0.07042693]
[1744208888326,14.32229112,106.27,106.24,0.07042693]
[1744208888519,9.4191,106.25,106.24,0.07042693]
[1744208888710,14.32229112,106.27,106.19,293.38942168]
[1744208888917,14.2591,106.27,106.2,4.00332]
[1744208889116,9.4198,106.25,106.19,293.38942168]
[1744208889318,9.4198,106.25,106.2,4.00332]
[1744208889624,14.2591,106.27,106.21,4.00177147]
[1744208889827,0.06357247,106.24,106.21,0.05922065]
[1744208890027,0.06357247,106.24,106.22,4.00138792]
[1744208890317,0.06357247,106.24,106.21,0.05922065]
[1744208890517,0.06357247,106.24,106.22,4.00119786]
[1744208890718,59.52,106.31,106.23,4.00079946]
[1744208890917,59.52,106.32,106.24,4.0008376]
[1744208891114,59.52,106.32,106.25,4.00039748]
[1744208891319,9.2049,106.34,106.24,59.52]
[1744208891520,9.2049,106.34,106.25,43.8517506]
[1744208891819,9.4123,106.33,106.3,9.4139]
[1744208892020,0.06544877,106.31,106.28,0.06094092]
[1744208892226,0.06544877,106.31,106.3,9.4146]
[1744208892526,0.06544877,106.31,106.28,0.06677233]
[1744208892727,0.06544877,106.31,106.28,9.48277233]
[1744208893028,0.06544877,106.31,106.28,0.06677233]
[1744208893327,0.06544877,106.31,106.3,9.4146]
[1744208893914,9.47964877,106.31,106.28,0.06677233]
[1744208894114,0.06544877,106.31,106.28,0.06677233]
[1744208894429,0.06544877,106.31,106.29,9.415]
[1744208894827,0.06544877,106.31,106.28,0.06677233]
[1744208895426,59.56544877,106.31,106.28,0.06677233]
[1744208895931,68.97954877,106.31,106.28,0.06677233]
[1744208896131,68.97954877,106.31,106.28,9.48267233]
[1744208896327,0.06544877,106.31,106.28,0.06677233]
[1744208897138,0.06544877,106.31,106.3,9.4146]
[1744208897431,0.06544877,106.31,106.28,0.06677233]
[1744208897735,0.06544877,106.31,106.29,9.4147]
[1744208898125,0.06544877,106.31,106.28,0.06677233]
[1744208898434,0.06544877,106.31,106.29,4.01095664]
[1744208898727,0.06544877,106.31,106.28,0.06677233]
[1744208898728,0.06544877,106.31,106.3,9.4146]
[1744208898936,4.877e-05,106.31,106.3,13.4253392]
[1744208900033,4.877e-05,106.31,106.3,306.81476088]
[1744208900722,4.877e-05,106.31,106.3,316.21476088]
[1744208901329,4.877e-05,106.31,106.3,306.81476088]
[1744208903029,4.877e-05,106.31,106.3,316.21476088]
[1744208903238,9.4047,106.42,106.34,39.85071652]
[1744208903425,39.85071652,106.48,106.38,39.85071652]
[1744208903631,39.85071652,106.48,106.38,99.35071652]
[1744208903832,9.401,106.46,106.38,392.7401382]
[1744208904026,13.7962,106.49,106.4,39.85071652]
[1744208904224,9.3991,106.48,106.45,9.4009]
[1744208904426,0.06611831,106.46,106.45,9.4009]
[1744208905339,0.06611831,106.46,106.44,9.46916253]
[1744208906138,0.06611831,106.46,106.44,0.06726253]
[1744208907233,0.06611831,106.46,106.44,9.46886253]
[1744208907435,0.06611831,106.46,106.44,0.06726253]
[1744208909128,9.46711831,106.46,106.44,0.06726253]
[1744208909429,0.06611831,106.46,106.44,0.06726253]
[1744208910736,0.06611831,106.46,106.45,9.4014]
[1744208911940,0.06611831,106.46,106.44,9.46916253]